bitfinex/quotes_SOLUSD_20230113
["timestamp","ask_amount","ask_price","bid_price","bid_amount"]
[1673568640499,10.0,16.571,16.557,0.96]
[1673568640687,10.0,16.571,16.558,0.96]
[1673568640897,10.0,16.571,16.555,20.0]
[1673568642817,10.0,16.571,16.556,0.96]
[1673568643014,10.0,16.571,16.557,0.96]
[1673568643219,10.0,16.571,16.558,0.96]
[1673568643541,45.26,16.572,16.558,0.96]
[1673568643737,10.0,16.573,16.558,0.96]
[1673568643957,10.0,16.573,16.559,0.96]
[1673568645233,10.0,16.573,16.558,20.0]
[1673568645442,45.26,16.572,16.554,20.0]
[1673568645974,10.0,16.571,16.555,45.31]
[1673568646174,10.0,16.571,16.556,20.0]
[1673568646583,10.0,16.571,16.553,94.31073745]
[1673568646791,10.0,16.571,16.554,20.0]
[1673568646996,10.0,16.571,16.555,0.96]
[1673568647211,10.0,16.571,16.556,0.96]
[1673568647425,37.0,16.57,16.552,45.32]
[1673568647653,82.27,16.57,16.549,45.33]
[1673568647846,10.0,16.568,16.546,49.00073745]
[1673568648068,20.0,16.567,16.546,49.00073745]
[1673568648268,10.0,16.566,16.547,45.33]
[1673568648600,10.0,16.566,16.547,105.74402873]
[1673568648804,10.0,16.566,16.547,60.41402873]
[1673568649129,10.0,16.566,16.548,45.33]
[1673568649310,10.0,16.566,16.549,1.92]
[1673568650395,30.0,16.567,16.549,1.92]
[1673568650708,227.024,16.569,16.55,94.32073745]
[1673568650886,227.024,16.569,16.552,10.0]
[1673568651095,227.024,16.569,16.553,0.96]
[1673568651306,227.024,16.569,16.554,0.96]
[1673568651515,227.024,16.569,16.555,0.96]
[1673568651735,10.0,16.568,16.554,0.96]
[1673568651957,10.0,16.568,16.553,20.0]
[1673568652162,10.0,16.568,16.551,20.0]
[1673568652567,10.0,16.568,16.552,45.32]
[1673568652780,10.0,16.568,16.553,20.0]
[1673568653205,10.0,16.568,16.554,1.92]
[1673568653646,10.0,16.568,16.55,20.0]
[1673568653647,20.0,16.567,16.55,20.0]
[1673568653837,10.0,16.566,16.549,45.33]
[1673568654045,10.0,16.568,16.549,45.33]
[1673568654264,237.024,16.569,16.549,45.33]
[1673568654265,227.024,16.569,16.55,11.41329128]
[1673568654682,227.024,16.569,16.551,45.32]
[1673568655022,227.024,16.569,16.552,11.92]
[1673568655216,227.024,16.569,16.553,20.0]
[1673568655423,227.024,16.569,16.554,1.92]
[1673568655829,10.0,16.568,16.554,1.92]
[1673568656486,10.0,16.568,16.549,45.33]
[1673568656487,17.0,16.567,16.549,45.33]
[1673568656669,17.0,16.567,16.543,113.9206]
[1673568656670,81.03725104,16.567,16.543,113.9206]
[1673568656891,10.0,16.566,16.543,113.9206]
[1673568657093,17.0,16.565,16.543,113.9206]
[1673568657297,62.28,16.565,16.543,159.2606]
[1673568657515,62.28,16.565,16.544,10.0]
[1673568657718,45.28,16.565,16.544,10.0]
[1673568658052,45.28,16.565,16.546,10.0]
[1673568658260,45.28,16.567,16.546,10.0]
[1673568658454,45.28,16.567,16.547,45.33]
[1673568658669,10.0,16.566,16.547,45.33]
[1673568658883,10.0,16.566,16.548,1.92]
[1673568659084,45.28,16.565,16.546,45.33]
[1673568659308,27.0,16.564,16.545,45.34]
[1673568659737,45.29,16.563,16.546,20.0]
[1673568659938,45.29,16.563,16.545,20.0]
[1673568660154,118.4468,16.562,16.545,20.0]
[1673568660785,30.0,16.561,16.546,0.96]
[1673568660990,30.0,16.561,16.528,10.0]
[1673568660991,92.29,16.561,16.54,45.35]
[1673568661204,108.1155,16.56,16.54,45.35]
[1673568661401,47.0,16.559,16.536,10.0]
[1673568661827,92.3,16.559,16.537,45.36]
[1673568662151,33.60701104,16.558,16.534,45.37]
[1673568662345,10.0,16.556,16.534,45.37]
[1673568662553,136.5934,16.555,16.534,45.37]
[1673568662781,181.9034,16.555,16.535,20.0]
[1673568662972,181.9034,16.555,16.534,45.37]
[1673568663937,181.9034,16.555,16.535,10.0]
[1673568664256,181.9034,16.555,16.536,20.0]
[1673568664438,181.9034,16.555,16.536,65.36]
[1673568664880,10.0,16.554,16.536,65.36]
[1673568665199,21.84976,16.553,16.536,20.0]
[1673568665421,50.15976,16.553,16.535,20.0]
[1673568665610,45.31,16.553,16.535,45.36]
[1673568665812,45.31,16.553,16.531,45.38]
[1673568665813,20.0,16.552,16.531,45.38]
[1673568666031,60.60701104,16.552,16.528,10.0]
[1673568666237,244.41259493,16.551,16.529,45.38]
[1673568666447,47.0,16.55,16.529,45.38]
[1673568666663,130.73479493,16.55,16.529,45.38]
[1673568666874,129.06479493,16.549,16.529,45.38]
[1673568667085,160.6778,16.551,16.529,45.38]
[1673568667291,115.3578,16.551,16.53,11.41329128]
[1673568667508,115.3578,16.551,16.529,45.38]
[1673568667716,115.3578,16.551,16.53,10.0]
[1673568668038,115.3578,16.551,16.53,21.41329128]
[1673568668253,115.3578,16.551,16.531,76.79329128]
[1673568668559,115.3578,16.551,16.531,65.38]
[1673568668762,115.3578,16.551,16.532,11.41329128]
[1673568668979,115.3578,16.551,16.533,20.0]
[1673568669179,115.3578,16.551,16.531,65.38]
[1673568669504,62.32,16.55,16.531,65.38]
[1673568669717,10.0,16.549,16.531,20.0]
[1673568669930,17.0,16.548,16.53,20.0]
[1673568670115,17.0,16.548,16.53,45.38]
[1673568670116,20.0,16.547,16.53,45.38]
[1673568670325,31.84976,16.546,16.526,45.39]
[1673568670552,77.17976,16.546,16.525,45.39]
[1673568670765,10.0,16.544,16.519,10.0]
[1673568670975,21.84976,16.543,16.519,10.0]
[1673568671298,14.84976,16.542,16.52,45.41]
[1673568671508,21.84976,16.541,16.52,45.41]
[1673568671718,67.19976,16.541,16.521,10.0]
[1673568672122,4.84976,16.541,16.522,45.4]
[1673568672346,17.0,16.54,16.522,45.4]
[1673568672547,4.84976,16.541,16.522,45.4]
[1673568672752,17.0,16.54,16.523,20.0]
[1673568672973,27.0,16.541,16.523,20.0]
[1673568673299,17.0,16.541,16.523,20.0]
[1673568673506,118.8159,16.542,16.524,45.39]
[1673568673817,119.7334,16.545,16.526,10.0]
[1673568674130,115.3578,16.551,16.527,20.0]
[1673568674326,115.3578,16.551,16.528,1.92]
[1673568674536,115.3578,16.551,16.528,13.33329128]
[1673568674783,115.3578,16.551,16.53,10.0]
[1673568675072,115.3578,16.551,16.531,21.92]
[1673568675293,115.3578,16.551,16.531,67.3]
[1673568676123,115.3578,16.551,16.532,10.0]
[1673568676330,115.3578,16.551,16.533,21.92]
[1673568676653,115.3578,16.551,16.533,67.29]
[1673568676855,17.0,16.55,16.533,65.37]
[1673568677068,115.3578,16.551,16.533,20.0]
[1673568677286,115.3578,16.551,16.532,20.0]
[1673568677477,115.3578,16.551,16.532,45.37]
[1673568677810,115.3578,16.551,16.534,10.0]
[1673568678017,115.3578,16.551,16.535,20.0]
[1673568678229,115.3578,16.551,16.536,1.92]
[1673568678638,115.3578,16.551,16.536,11.92]
[1673568678858,114.7039,16.554,16.536,11.92]
[1673568678859,45.31,16.556,16.537,65.36]
[1673568679177,155.8881,16.561,16.538,1.92]
[1673568679377,110.5981,16.561,16.538,1.92]
[1673568679580,110.5981,16.561,16.539,45.35]
[1673568679794,110.5981,16.561,16.54,21.92]
[1673568680207,110.5981,16.561,16.541,45.35]
[1673568680424,110.5981,16.561,16.542,21.92]
[1673568680839,17.0,16.559,16.542,20.0]
[1673568681061,10.0,16.558,16.538,20.0]
[1673568681270,17.0,16.557,16.539,1.92]
[1673568681482,27.0,16.557,16.539,1.92]
[1673568681692,45.31,16.556,16.539,1.92]
[1673568682104,45.31,16.556,16.535,45.36]
[1673568682315,45.31,16.556,16.534,45.37]
[1673568682316,17.0,16.555,16.534,45.37]
[1673568682640,31.84976,16.555,16.535,20.0]
[1673568682830,31.84976,16.555,16.529,162.1421]
[1673568682831,45.31,16.554,16.534,20.0]
[1673568683042,17.0,16.553,16.534,20.0]
[1673568683476,45.32,16.552,16.534,20.0]
[1673568683681,17.0,16.551,16.535,1.92]
[1673568683889,17.0,16.551,16.534,20.0]
[1673568684091,45.32,16.55,16.534,20.0]
[1673568684299,182.1194,16.551,16.534,20.0]
[1673568684515,136.7994,16.551,16.534,20.0]
[1673568685148,136.7994,16.551,16.535,1.92]
[1673568685575,119.7994,16.551,16.535,1.92]
[1673568686320,45.32,16.55,16.535,1.92]
[1673568687058,10.0,16.549,16.535,1.92]
[1673568688419,10.0,16.549,16.534,20.0]
[1673568688649,10.0,16.549,16.531,20.0]
[1673568688946,10.0,16.547,16.531,20.0]
[1673568689155,10.0,16.547,16.525,45.39]
[1673568689345,176.2433,16.546,16.525,45.39]
[1673568689557,10.0,16.545,16.522,117.2547]
[1673568689874,75.34050572,16.545,16.523,45.4]
[1673568690083,14.84976,16.545,16.525,45.39]
[1673568690305,62.34,16.544,16.525,45.39]
[1673568690520,14.84976,16.543,16.52,45.41]
[1673568690835,21.84976,16.542,16.519,45.41]
[1673568691052,14.84976,16.541,16.519,45.41]
[1673568691259,17.0,16.54,16.518,45.41]
[1673568691606,10.0,16.538,16.518,45.41]
[1673568691768,152.4533,16.537,16.516,45.42]
[1673568691983,10.0,16.536,16.516,45.42]
[1673568692308,17.0,16.535,16.516,45.42]
[1673568692728,180.8133,16.537,16.517,20.0]
[1673568692929,115.4533,16.537,16.516,45.42]
[1673568693549,115.4533,16.537,16.517,10.0]
[1673568693761,115.4533,16.537,16.518,1.92]
[1673568693998,115.4533,16.537,16.518,47.33]
[1673568694196,115.4533,16.537,16.519,20.0]
[1673568694405,115.4533,16.537,16.52,11.92]
[1673568694614,115.4533,16.537,16.521,20.0]
[1673568694819,115.4533,16.537,16.522,1.92]
[1673568695025,115.4533,16.537,16.522,47.32]
[1673568695251,113.4427,16.542,16.523,20.0]
[1673568695458,113.4427,16.542,16.524,11.92]
[1673568695687,113.4427,16.542,16.525,20.0]
[1673568695996,113.4427,16.542,16.526,1.92]
[1673568696218,113.4427,16.542,16.526,47.31]
[1673568696391,113.4427,16.542,16.527,20.0]
[1673568696728,113.4427,16.542,16.528,1.92]
[1673568697163,10.0,16.54,16.526,20.0]
[1673568697381,10.0,16.54,16.522,45.4]
[1673568697382,17.0,16.539,16.523,20.0]
[1673568697558,10.0,16.54,16.523,20.0]
[1673568697766,10.0,16.54,16.524,45.39]
[1673568697982,10.0,16.54,16.525,20.0]
[1673568698191,10.0,16.54,16.523,20.0]
[1673568698400,10.0,16.54,16.524,1.92]
[1673568699025,17.0,16.539,16.523,20.0]
[1673568699357,10.0,16.538,16.523,20.0]
[1673568699759,10.0,16.538,16.522,45.4]
[1673568699979,10.0,16.538,16.501,10.0]
[1673568699980,82.36,16.537,16.508,45.44]
[1673568700183,4.84976,16.536,16.508,161.3624]
[1673568700390,10.0,16.534,16.51,10.92984938]
[1673568700618,17.0,16.533,16.51,10.92984938]
[1673568700827,45.37,16.533,16.511,45.43]
[1673568701242,155.1206,16.533,16.511,45.43]
[1673568701442,155.1206,16.533,16.516,1.92]
[1673568702712,155.1206,16.533,16.516,21.92]
[1673568703124,10.0,16.532,16.516,21.92]
[1673568703667,10.0,16.532,16.516,67.34]
[1673568704384,17.0,16.531,16.511,45.43]
[1673568704591,20.0,16.53,16.51,45.43]
[1673568704806,113.6321,16.53,16.509,10.0]
[1673568705113,10.0,16.529,16.511,10.92984938]
[1673568705528,10.0,16.529,16.512,45.43]
[1673568705742,113.6321,16.53,16.512,45.43]
[1673568705953,4.84976,16.536,16.513,30.92984938]
[1673568706179,10.0,16.541,16.513,30.92984938]
[1673568706180,45.34,16.543,16.514,4.86753]
[1673568706372,113.6321,16.543,16.516,10.0]
[1673568706620,113.6321,16.543,16.517,21.92]
[1673568706793,113.6321,16.543,16.517,67.33]
[1673568707017,113.6321,16.543,16.519,10.0]
[1673568707231,113.6321,16.543,16.52,21.92]
[1673568707446,10.0,16.542,16.52,123.91974033]
[1673568707762,17.0,16.541,16.521,10.92984938]
[1673568707969,14.84976,16.54,16.51,156.7634]
[1673568708157,14.84976,16.54,16.516,1.92]
[1673568708158,10.0,16.538,16.516,1.92]
[1673568708375,17.0,16.537,16.517,10.92984938]
[1673568708588,10.0,16.536,16.517,10.92984938]
[1673568709224,10.0,16.534,16.517,10.92984938]
[1673568709549,110.241,16.533,16.517,10.92984938]
[1673568709946,110.241,16.533,16.518,20.0]
[1673568710929,110.241,16.533,16.519,1.92]
[1673568711446,110.241,16.533,16.52,10.92984938]
[1673568711657,110.241,16.533,16.521,1.92]
[1673568712728,119.2281,16.535,16.521,1.92]
[1673568713123,10.0,16.534,16.519,45.41]
[1673568713334,10.0,16.534,16.518,20.0]
[1673568714713,113.0935,16.533,16.517,30.92984938]
[1673568714906,113.0935,16.533,16.518,1.92]
[1673568718375,119.2281,16.535,16.518,12.84984938]
[1673568718595,119.2281,16.535,16.518,58.25984938]
[1673568718925,10.0,16.538,16.519,10.0]
[1673568719128,10.0,16.538,16.52,1.92]
[1673568719333,10.0,16.538,16.52,58.25984938]
[1673568719528,10.0,16.538,16.52,12.84984938]
[1673568720401,157.2865,16.539,16.521,10.92984938]
[1673568720583,111.9365,16.539,16.522,21.92]
[1673568720997,111.9365,16.539,16.523,56.32984938]
[1673568721224,111.9365,16.539,16.524,21.92]
[1673568721426,111.9365,16.539,16.524,32.84984938]
[1673568721654,111.9365,16.539,16.525,56.31984938]
[1673568721855,111.9365,16.539,16.526,21.92]
[1673568722471,10.0,16.538,16.526,21.92]
[1673568723112,10.0,16.538,16.527,20.0]
[1673568723328,10.0,16.538,16.528,0.96]
[1673568723740,10.0,16.538,16.527,0.96]
[1673568723942,10.0,16.538,16.522,65.4]
[1673568724155,10.0,16.538,16.522,20.0]
[1673568724697,10.0,16.538,16.521,20.0]
[1673568724889,10.0,16.538,16.521,65.4]
[1673568725132,10.0,16.538,16.523,10.92984938]
[1673568725314,10.0,16.538,16.524,21.92]
[1673568725532,111.9365,16.539,16.524,21.92]
[1673568725737,111.9365,16.539,16.524,32.84984938]
[1673568726161,111.9365,16.539,16.524,21.92]
[1673568726578,111.9365,16.539,16.525,45.39]
[1673568726897,111.9365,16.539,16.526,21.92]
[1673568727106,111.9365,16.539,16.527,20.0]
[1673568727317,111.9365,16.539,16.528,1.92]
[1673568729118,10.0,16.541,16.528,1.92]
[1673568729309,33.27,16.55,16.53,116.54]
[1673568729310,154.8263,16.547,16.53,116.54]
[1673568729516,109.4963,16.547,16.531,21.92]
[1673568729742,109.4963,16.547,16.531,78.21984938]
[1673568730062,109.4963,16.547,16.533,10.0]
[1673568730374,109.4963,16.547,16.535,10.0]
[1673568730566,109.4963,16.547,16.536,1.92]
[1673568730790,45.31,16.554,16.536,21.92]
[1673568731012,45.31,16.554,16.537,10.92984938]
[1673568731013,113.6402,16.552,16.537,10.92984938]
[1673568731210,113.6402,16.552,16.538,20.96]
[1673568731622,113.6402,16.552,16.539,10.92984938]
[1673568731833,113.6402,16.552,16.54,24.05]
[1673568732264,113.6402,16.552,16.54,34.97984938]
[1673568734670,113.6402,16.552,16.54,24.05]
[1673568735212,10.0,16.55,16.54,23.09]
[1673568735441,10.0,16.55,16.538,20.0]
[1673568735648,10.0,16.55,16.531,20.0]
[1673568735866,10.0,16.55,16.531,65.37]
[1673568736805,10.0,16.55,16.532,1.92]
[1673568737012,10.0,16.55,16.532,11.92]
[1673568737238,10.0,16.55,16.533,65.37]
[1673568737441,10.0,16.55,16.531,65.37]
[1673568737848,17.0,16.549,16.531,65.37]
[1673568738186,10.0,16.548,16.52,116.28]
[1673568738363,10.0,16.546,16.521,111.0883]
[1673568738569,126.7965,16.545,16.521,111.0883]
[1673568738789,172.1365,16.545,16.522,45.4]
[1673568739022,10.0,16.544,16.522,45.4]
[1673568739208,41.84976,16.543,16.52,23.2]
[1673568739416,4.84976,16.542,16.52,23.2]
[1673568739620,17.0,16.541,16.52,23.2]
[1673568739835,243.75,16.541,16.516,45.42]
[1673568740069,243.75,16.541,16.513,45.42]
[1673568740070,181.4,16.539,16.513,45.42]
[1673568740247,21.84976,16.538,16.511,45.43]
[1673568740479,186.24976,16.537,16.51,23.38]
[1673568740789,181.4,16.535,16.51,23.38]
[1673568740994,181.4,16.535,16.501,45.46]
[1673568740995,10.0,16.529,16.501,45.46]
[1673568741196,133.84576,16.528,16.501,45.46]
[1673568741422,4.84976,16.527,16.501,45.46]
[1673568741625,10.0,16.525,16.501,45.46]
[1673568741832,131.7362,16.524,16.501,45.46]
[1673568742040,177.1262,16.524,16.501,45.46]
[1673568742366,177.1262,16.524,16.501,56.38984938]
[1673568742668,177.1262,16.524,16.502,1.92]
[1673568742884,10.0,16.523,16.501,56.38984938]
[1673568743091,10.0,16.523,16.503,10.92984938]
[1673568743306,45.4,16.522,16.503,10.92984938]
[1673568743634,20.0,16.521,16.501,45.46]
[1673568743847,27.0,16.52,16.5,24.91]
[1673568744045,20.0,16.519,16.5,24.91]
[1673568744267,10.0,16.517,16.5,24.91]
[1673568744994,10.0,16.517,16.501,10.92984938]
[1673568746237,10.0,16.517,16.5,24.91]
[1673568746448,45.42,16.516,16.5,24.91]
[1673568746868,10.0,16.515,16.5,24.91]
[1673568747722,10.0,16.515,16.5,25.02]
[1673568748999,10.0,16.515,16.501,0.96]
[1673568749834,113.6848,16.52,16.502,46.41]
[1673568750043,45.38,16.528,16.51,24.87]
[1673568750363,159.5853,16.528,16.51,24.87]
[1673568750574,159.5853,16.528,16.511,10.92984938]
[1673568750783,10.0,16.523,16.511,10.92984938]
[1673568752662,10.0,16.523,16.51,24.87]
[1673568752875,10.0,16.523,16.51,22.87]
[1673568754872,10.0,16.523,16.509,45.44]
[1673568755085,10.0,16.523,16.508,10.92984938]
[1673568755086,17.0,16.522,16.508,10.92984938]
[1673568755318,10.0,16.521,16.508,10.92984938]
[1673568755729,10.0,16.519,16.503,45.45]
[1673568755952,10.0,16.519,16.504,20.0]
[1673568756269,10.0,16.517,16.504,20.0]
[1673568756467,10.0,16.517,16.503,65.45]
[1673568756686,10.0,16.517,16.503,20.0]
[1673568756868,10.0,16.517,16.504,10.62395432]
[1673568757093,10.0,16.517,16.505,20.0]
[1673568757398,10.0,16.517,16.506,11.58395432]
[1673568757609,10.0,16.517,16.507,20.0]
[1673568757929,10.0,16.519,16.507,20.0]
[1673568758149,111.4414,16.52,16.508,10.62395432]
[1673568758552,111.4414,16.52,16.509,0.96]
[1673568758988,111.4414,16.52,16.51,10.62395432]
[1673568759388,111.4414,16.52,16.51,56.05395432]
[1673568759607,10.0,16.523,16.51,10.62395432]
[1673568759824,10.0,16.523,16.511,10.62395432]
[1673568760162,113.7949,16.526,16.511,10.62395432]
[1673568760547,45.38,16.528,16.511,10.62395432]
[1673568760770,109.932,16.527,16.512,20.96]
[1673568760980,109.932,16.527,16.512,21.92]
[1673568761303,109.932,16.527,16.513,56.04395432]
[1673568761493,109.932,16.527,16.514,20.0]
[1673568761700,109.932,16.527,16.514,30.62395432]
[1673568761910,109.932,16.527,16.515,10.62395432]
[1673568762139,109.932,16.527,16.516,20.0]
[1673568762549,109.932,16.527,16.517,10.62395432]
[1673568762747,109.932,16.527,16.518,20.0]
[1673568763503,10.0,16.531,16.518,20.0]
[1673568763715,10.0,16.529,16.518,20.0]
[1673568764546,10.0,16.529,16.514,20.0]
[1673568764886,10.0,16.529,16.515,10.62395432]
[1673568765406,62.38,16.528,16.51,24.82]
[1673568765613,14.86856,16.527,16.51,24.82]
[1673568765815,21.86856,16.526,16.51,24.82]
[1673568766024,14.86856,16.525,16.51,24.82]
[1673568766248,17.0,16.524,16.51,24.82]
[1673568766462,62.39,16.524,16.51,24.82]
[1673568766772,10.0,16.523,16.51,24.82]
[1673568768229,17.0,16.522,16.51,24.82]
[1673568768460,10.0,16.521,16.51,24.82]
[1673568769304,17.0,16.52,16.51,24.82]
[1673568769830,10.0,16.519,16.508,10.62395432]
[1673568770551,10.0,16.519,16.501,45.46]
[1673568770777,10.0,16.519,16.502,30.62395432]
[1673568771194,10.0,16.519,16.503,56.07395432]
[1673568771378,10.0,16.519,16.503,10.62395432]
[1673568771589,10.0,16.519,16.501,45.46]
[1673568771590,10.0,16.519,16.504,10.62395432]
[1673568771792,17.0,16.518,16.504,10.62395432]
[1673568772005,10.0,16.517,16.504,10.62395432]
[1673568773373,10.0,16.517,16.5,74.0776198]
[1673568773607,10.0,16.515,16.501,10.62395432]
[1673568774859,114.397,16.516,16.501,10.62395432]
[1673568775062,10.0,16.519,16.502,65.45]
[1673568775471,10.0,16.519,16.503,10.62395432]
[1673568775701,10.0,16.519,16.504,20.96]
[1673568775889,114.397,16.52,16.504,66.41]
[1673568776114,114.397,16.52,16.505,11.58395432]
[1673568776332,114.397,16.52,16.506,0.96]
[1673568776534,114.397,16.52,16.507,0.96]
[1673568776741,10.0,16.522,16.508,0.96]
[1673568776956,229.2179,16.524,16.51,25.02]
[1673568777588,229.2179,16.524,16.511,10.62395432]
[1673568778440,229.2179,16.524,16.51,25.02]
[1673568778830,229.2179,16.524,16.511,10.62395432]
[1673568781282,229.2179,16.524,16.51,25.02]
[1673568781476,27.0,16.523,16.51,25.02]
[1673568782105,10.0,16.522,16.51,25.02]
[1673568784853,27.0,16.521,16.509,10.32267247]
[1673568785043,10.0,16.52,16.502,45.45]
[1673568785250,10.0,16.52,16.505,10.32267247]
[1673568785465,10.0,16.52,16.506,20.0]
[1673568785811,10.0,16.52,16.507,10.32267247]
[1673568786339,10.0,16.52,16.508,20.0]
[1673568789035,45.4,16.523,16.508,20.0]
[1673568789369,172.1246,16.528,16.51,25.02]
[1673568789586,126.7446,16.528,16.511,1.92]
[1673568789902,126.7446,16.528,16.511,57.67267247]
[1673568790228,126.7446,16.528,16.512,10.32267247]
[1673568790529,10.0,16.527,16.512,10.32267247]
[1673568791685,10.0,16.525,16.509,45.44]
[1673568791880,17.0,16.524,16.504,55.77267247]
[1673568792113,4.86856,16.523,16.5,24.88]
[1673568792421,27.0,16.522,16.5,24.88]
[1673568792633,24.86856,16.521,16.5,24.88]
[1673568792828,31.86856,16.52,16.5,24.88]
[1673568793051,10.0,16.518,16.5,24.88]
[1673568793261,10.0,16.516,16.5,24.88]
[1673568794650,10.0,16.516,16.501,45.46]
[1673568795033,10.0,16.516,16.502,1.92]
[1673568795666,10.0,16.516,16.5,35.20267247]
[1673568795876,10.0,16.516,16.5,24.88]
[1673568796736,21.86856,16.515,16.495,45.47]
[1673568797053,139.30756,16.515,16.495,45.47]
[1673568797262,10.0,16.513,16.498,20.0]
[1673568797679,17.0,16.512,16.498,20.0]
[1673568797991,17.0,16.512,16.495,20.0]
[1673568798210,118.5587,16.511,16.495,20.0]
[1673568798518,10.0,16.51,16.495,20.0]
[1673568800088,10.0,16.51,16.491,45.49]
[1673568800089,20.0,16.509,16.491,45.49]
[1673568800297,10.0,16.508,16.49,35.44725921]
[1673568800530,31.86856,16.508,16.49,35.44725921]
[1673568802504,10.0,16.508,16.492,10.24725921]
[1673568802715,10.0,16.508,16.493,1.92]
[1673568802930,10.0,16.508,16.493,47.4]
[1673568803138,10.0,16.508,16.494,20.0]
[1673568803332,10.0,16.508,16.495,1.92]
[1673568803555,10.0,16.508,16.495,47.39]
[1673568803766,10.0,16.508,16.496,20.0]
[1673568803983,10.0,16.508,16.497,0.96]
[1673568804186,10.0,16.508,16.497,46.43]
[1673568804617,10.0,16.508,16.498,20.0]
[1673568805442,10.0,16.508,16.491,119.258]
[1673568805443,10.0,16.508,16.493,20.0]
[1673568805658,10.0,16.508,16.493,45.48]
[1673568805888,10.0,16.508,16.494,20.0]
[1673568806078,10.0,16.508,16.492,65.48]
[1673568807040,10.0,16.508,16.492,20.0]
[1673568807440,10.0,16.508,16.49,24.82]
[1673568807658,45.44,16.507,16.49,24.82]
[1673568807980,108.4793,16.506,16.49,24.82]
[1673568808185,108.4793,16.506,16.491,45.49]
[1673568808397,10.0,16.508,16.491,45.49]
[1673568808720,10.0,16.508,16.491,55.73725921]
[1673568808932,10.0,16.508,16.5,25.02]
[1673568809148,10.0,16.511,16.5,25.02]
[1673568809453,117.439,16.515,16.501,1.92]
[1673568809669,117.439,16.515,16.501,47.38]
[1673568810297,10.0,16.514,16.501,45.46]
[1673568810909,10.0,16.514,16.502,0.96]
[1673568811122,10.0,16.522,16.503,0.96]
[1673568811337,108.7965,16.525,16.51,25.02]
[1673568811875,108.7965,16.525,16.511,0.96]
[1673568812808,108.7965,16.525,16.51,25.02]
[1673568813225,10.0,16.523,16.51,25.02]
[1673568814070,10.0,16.521,16.51,25.02]
[1673568814290,10.0,16.521,16.505,45.45]
[1673568814478,10.0,16.521,16.501,132.8252]
[1673568814479,10.0,16.521,16.506,20.0]